bitfinex-derivatives/quotes_ETHF0:USTF0_20241105
["timestamp","ask_amount","ask_price","bid_price","bid_amount"]
[1730769426052,4.80897394,2391.6,2391.5,0.41837]
[1730769426249,3.2078,2391.6,2391.5,0.41837]
[1730769427254,3.2078,2391.6,2391.5,4.59997]
[1730769427853,4.80897394,2392.0,2391.5,4.1816]
[1730769428056,4.80897394,2392.0,2391.2,1.04604]
[1730769428360,4.80897394,2392.0,2391.8,0.41831]
[1730769428565,3.2078,2392.0,2391.8,0.41831]
[1730769428860,3.62609,2392.0,2391.8,0.41831]
[1730769429053,3.2078,2392.0,2391.2,1.04604]
[1730769429451,3.2078,2392.0,2391.9,0.4183]
[1730769429856,3.62609,2392.0,2391.2,1.4645]
[1730769430061,3.2078,2392.0,2391.1,4.25389]
[1730769430357,3.2078,2392.0,2391.6,0.41835]
[1730769430358,0.41832,2391.9,2391.6,0.41835]
[1730769430560,1.60117394,2391.9,2391.6,0.41835]
[1730769430764,0.41833,2391.8,2391.5,0.41836]
[1730769430949,0.41833,2391.8,2391.5,0.41837]
[1730769431156,3.2078,2391.7,2391.5,0.41837]
[1730769431462,3.2078,2391.7,2391.5,0.41836]
[1730769431763,3.2078,2391.7,2391.5,0.41837]
[1730769431764,3.62614,2391.7,2391.5,0.41837]
[1730769431959,7.3894,2391.7,2391.1,3.2078]
[1730769432153,7.3894,2391.7,2390.6,1.04632]
[1730769432154,0.41843,2391.2,2391.0,0.41845]
[1730769432465,3.62622,2391.3,2391.0,0.41845]
[1730769432655,3.2078,2391.3,2391.2,0.41843]
[1730769433057,1.60117394,2391.4,2390.7,3.2078]
[1730769433265,1.60117394,2391.4,2391.3,0.41841]
[1730769434160,0.41838,2391.5,2391.3,0.41841]
[1730769434460,0.4184,2391.4,2391.2,0.41842]
[1730769434662,3.2078,2391.6,2390.6,5.56960202]
[1730769434663,0.41845,2391.1,2390.9,0.41847]
[1730769434959,3.41706014,2391.0,2390.9,0.41848]
[1730769435365,3.41706014,2391.0,2390.9,4.60088]
[1730769435662,0.20926014,2391.0,2390.9,4.60088]
[1730769435863,1.60686062,2391.0,2390.9,4.60088]
[1730769436059,1.60686062,2391.1,2391.0,0.41846]
[1730769436359,3.2078,2391.4,2391.3,0.41841]
[1730769436559,3.41704674,2391.4,2390.8,4.25402]
[1730769436754,4.81494049,2391.1,2391.0,0.41845]
[1730769436957,5.02418723,2391.1,2391.0,0.41845]
[1730769437663,5.02418723,2391.1,2391.0,4.60085]
[1730769437855,1.81638723,2391.1,2391.0,4.60085]
[1730769438667,1.60714049,2391.1,2391.0,4.60085]
[1730769439369,1.60714049,2391.1,2391.0,0.41845]
[1730769439565,1.60714049,2391.1,2391.0,4.60085]
[1730769441165,1.60714049,2391.1,2391.0,0.41845]
[1730769441363,7.3902,2391.1,2390.3,3.2078]
[1730769441674,3.62631,2390.8,2390.6,0.41852]
[1730769441862,3.2078,2390.8,2390.4,0.41857]
[1730769442062,3.2078,2390.8,2390.3,4.25425]
[1730769442267,3.2078,2390.8,2390.3,3.2078]
[1730769442468,3.62631,2390.8,2390.5,0.41853]
[1730769442677,40.8,2390.7,2390.6,0.41853]
[1730769442970,41.21851,2390.7,2390.5,0.41854]
[1730769443170,3.2078,2390.8,2390.5,0.41854]
[1730769443371,3.2078,2390.8,2390.3,3.2078]
[1730769443570,3.6263,2390.8,2390.6,0.41852]
[1730769443872,44.0078,2390.8,2390.5,0.41854]
[1730769444171,3.2078,2390.8,2390.3,3.2078]
[1730769444368,0.41852,2390.7,2390.5,0.41855]
[1730769444568,3.2078,2390.8,2390.7,0.41851]
[1730769444975,3.2078,2391.1,2390.7,4.1824]
[1730769445166,0.41847,2391.0,2390.8,0.41849]
[1730769445366,0.41846,2391.0,2390.8,0.41849]
[1730769445570,3.2078,2391.1,2390.3,4.25424]
[1730769445872,0.41847,2391.0,2390.8,0.41849]
[1730769446079,3.62626,2391.1,2390.8,0.41848]
[1730769446375,3.2078,2391.1,2390.8,0.41848]
[1730769446569,3.2078,2391.1,2390.3,3.2078]
[1730769446774,3.2078,2391.1,2391.0,0.41846]
[1730769446980,0.4674,2391.2,2391.1,0.41844]
[1730769447473,4.085,2391.4,2391.3,0.41841]
[1730769447474,3.2078,2391.4,2391.3,0.41841]
[1730769448977,3.2078,2391.7,2391.6,0.41836]
[1730769449382,3.2078,2391.7,2391.6,4.59996]
[1730769450079,3.6384,2392.2,2392.1,0.41827]
[1730769450266,3.673,2392.5,2392.3,0.41822]
[1730769450466,3.2078,2392.5,2392.4,0.41822]
[1730769450675,3.4169524,2392.5,2392.0,0.8364828]
[1730769450978,3.2078,2392.5,2392.0,0.8364828]
[1730769451179,3.2078,2392.5,2392.3,0.41822]
[1730769451578,3.2078,2392.5,2392.4,0.41822]
[1730769451983,0.41815,2392.8,2392.5,0.41819]
[1730769452285,3.2078,2392.5,2392.4,0.41822]
[1730769452677,3.2078,2392.5,2392.1,1.04568]
[1730769452878,3.2078,2392.5,2392.0,2.331]
[1730769453074,3.2078,2392.5,2392.4,0.41822]
[1730769454174,44.0078,2392.9,2392.1,7.73109202]
[1730769454381,44.0078,2392.9,2392.7,0.41815]
[1730769454582,44.0078,2392.9,2392.2,1.04562]
[1730769454784,44.0078,2392.9,2392.7,0.41815]
[1730769454982,44.0078,2392.9,2392.8,0.41815]
[1730769455391,2.67956469,2393.0,2392.9,0.41813]
[1730769455680,1.60924622,2393.1,2393.0,0.41811]
[1730769455880,1.60924622,2393.2,2392.8,4.52329202]
[1730769456184,1.60924622,2393.0,2392.9,0.41812]
[1730769456379,1.81832478,2393.0,2392.9,0.41812]
[1730769457277,0.20907856,2393.0,2392.9,0.41812]
[1730769457486,1.81853373,2393.0,2392.9,0.41812]
[1730769457879,3.2078,2393.1,2393.0,0.41811]
[1730769457880,1.60945517,2393.1,2393.0,0.41811]
[1730769458082,1.6103605,2393.2,2393.1,0.41809]
[1730769458280,5.02722866,2393.2,2393.1,0.41809]
[1730769458477,3.2078,2393.2,2393.1,0.41809]
[1730769458782,3.41688009,2393.2,2393.1,0.41809]
[1730769459383,5.98062172,2393.2,2392.9,0.41811]
[1730769459588,0.20908009,2393.1,2392.9,0.41811]
[1730769459775,0.62719009,2393.0,2392.7,0.41816]
[1730769460088,3.41688009,2392.9,2392.8,0.41815]
[1730769460280,5.56254172,2392.9,2392.8,0.41815]
[1730769460485,5.56254172,2392.9,2392.7,0.41815]
[1730769460784,0.20908009,2392.8,2392.7,0.41815]
[1730769461385,0.20908009,2392.8,2392.5,2.248]
[1730769461386,2.14566163,2393.0,2392.5,2.248]
[1730769461581,1.609997,2392.7,2392.6,0.41818]
[1730769461977,1.609997,2392.8,2392.6,4.1792]
[1730769462188,1.609997,2392.8,2392.7,0.41816]
[1730769462599,1.609997,2392.8,2392.7,4.59736]
[1730769462888,1.609997,2392.9,2392.7,3.55191422]
[1730769463187,1.609997,2392.9,2392.7,0.41816]
[1730769463188,1.609997,2392.8,2392.7,0.41816]
[1730769463389,2.44638898,2392.8,2392.7,0.41816]
[1730769463688,0.83639198,2392.8,2392.7,0.41816]
[1730769463885,0.2091062,2392.8,2392.7,4.59736]
[1730769464186,1.81879883,2392.8,2392.7,4.59736]
[1730769465080,1.60969263,2392.8,2392.7,4.59736]
[1730769465388,1.60969263,2392.9,2392.8,0.41815]
[1730769465575,1.60969263,2392.9,2392.8,4.59735]
[1730769466283,1.60969263,2393.0,2392.9,0.41813]
[1730769466789,1.8187798,2393.0,2392.9,4.59733]
[1730769467189,1.8187798,2393.0,2392.9,0.41813]
[1730769467689,1.60969263,2393.0,2392.9,4.59733]
[1730769467880,1.60969263,2393.1,2392.9,4.1792]
[1730769468078,2.44605542,2393.1,2393.0,0.41811]
[1730769468283,1.81876964,2393.1,2393.0,0.41811]
[1730769468489,1.81876964,2393.1,2393.0,4.59651]
[1730769468777,1.81876964,2393.1,2393.0,0.41811]
[1730769468985,0.83636279,2393.1,2392.5,4.52329202]
[1730769469188,0.62728578,2392.8,2392.6,2.57517]
[1730769469591,2.23704892,2392.8,2392.6,2.57517]
[1730769469982,2.23704892,2392.8,2392.6,0.41817]
[1730769470182,0.83640409,2392.7,2392.0,0.1]
[1730769470488,0.62728578,2392.4,2392.3,0.41823]
[1730769474589,3.2078,2392.5,2392.4,0.41822]
[1730769474891,3.2078,2392.5,2392.4,4.59822]
[1730769475094,1.60976314,2392.7,2392.4,4.18]
[1730769475293,0.62728578,2392.7,2392.6,0.41818]
[1730769476491,4.81756314,2392.9,2392.6,4.1792]
[1730769476693,0.62728578,2392.8,2392.7,0.41815]
[1730769477399,0.62728578,2392.8,2392.6,0.41817]
[1730769477994,0.62728578,2392.7,2392.6,0.41817]
[1730769478296,0.62728578,2392.7,2392.3,0.1]
[1730769478485,0.62728578,2392.5,2392.4,0.41821]
[1730769478685,1.04549578,2392.5,2392.3,0.1]
[1730769478890,3.2078,2392.6,2392.3,0.1]
[1730769478891,0.62728578,2392.4,2392.3,0.1]
[1730769479803,0.62728578,2392.4,2392.3,0.51823]
[1730769480397,1.60976314,2392.5,2392.4,0.41822]
[1730769480592,0.62728578,2392.5,2392.4,0.41822]
[1730769481299,2.14566163,2393.0,2392.4,4.18]
[1730769481300,1.60976314,2392.7,2392.4,4.18]
[1730769481496,0.62728578,2392.7,2392.6,0.41818]
[1730769481691,0.83640849,2392.7,2392.6,0.41818]
[1730769482492,0.20912271,2392.7,2392.6,4.59738]
[1730769482696,5.35346163,2392.9,2392.6,4.1792]
[1730769482897,0.83639871,2392.8,2392.4,1.04555]
[1730769483095,0.20911293,2392.7,2392.4,1.04555]
[1730769483304,1.61458483,2392.6,2392.5,0.4182]
[1730769483608,0.20911293,2392.6,2392.3,5.32557]
[1730769483805,1.82486236,2392.5,2392.4,4.59822]
[1730769484097,1.82486236,2392.5,2392.4,0.41822]
[1730769484098,1.61574943,2392.5,2392.4,0.41822]
[1730769484288,1.61574943,2392.5,2392.4,4.59822]
[1730769484495,1.61574943,2392.8,2392.7,0.41816]
[1730769484894,1.61574943,2392.8,2392.7,4.59736]
[1730769485091,1.82483636,2392.8,2392.7,4.59736]
[1730769485294,1.61574943,2392.8,2392.7,4.59736]
[1730769485795,1.25453271,2392.8,2392.5,0.41819]
[1730769485999,1.25454271,2392.7,2392.5,0.41819]
[1730769486298,1.25454271,2392.7,2392.4,0.41821]
[1730769486299,0.83637271,2392.6,2392.4,0.41821]
[1730769486494,0.83637271,2392.5,2392.4,0.41821]
[1730769488690,0.83640959,2392.5,2392.4,0.41821]
[1730769488898,0.20912381,2392.5,2392.4,4.59821]
[1730769489204,1.61662588,2392.5,2392.4,4.59821]
[1730769489504,1.82574969,2392.5,2392.4,4.59821]
[1730769489699,1.61662588,2392.5,2392.4,4.59821]
[1730769490099,1.61662588,2392.6,2392.4,4.18]
[1730769490304,1.61662588,2392.6,2392.5,4.5982]
[1730769490503,1.82573501,2392.6,2392.5,0.4182]
[1730769490704,1.82573501,2392.6,2392.5,4.5982]
[1730769491001,1.61662588,2392.6,2392.5,4.5982]
[1730769491210,1.82573501,2392.6,2392.5,4.5982]
[1730769491693,1.61662588,2392.6,2392.5,4.5982]
[1730769491891,1.82573501,2392.6,2392.5,4.5982]
[1730769492294,1.61662588,2392.6,2392.5,4.5982]
[1730769493004,1.61662588,2392.7,2392.5,8.19572928]
[1730769493195,1.61662588,2392.7,2392.6,4.59738]
[1730769493591,1.61662588,2392.8,2392.7,0.41816]
[1730769493796,0.20909948,2392.8,2392.7,4.59736]
[1730769494997,2.35476111,2392.8,2392.7,4.59736]
[1730769495202,2.98204689,2392.8,2392.3,0.51823]
[1730769495401,2.24606118,2392.4,2392.3,0.1]
[1730769495702,2.99474822,2392.4,2392.3,0.1]
[1730769495898,3.60851986,2392.4,2392.3,0.1]
[1730769496701,0.83638526,2392.4,2392.3,0.51823]
[1730769497606,2.9961796,2392.4,2392.3,0.51823]
[1730769497800,2.36889382,2392.4,2392.3,0.51823]
[1730769498006,2.36889382,2392.4,2392.3,4.69823]
[1730769499008,0.83638526,2392.4,2392.0,0.1]
[1730769499201,5.4524784,2392.5,2392.0,0.1]
[1730769499202,4.25335578,2392.1,2392.0,0.1]
[1730769499513,9.91493366,2392.1,2392.0,0.1]
[1730769500406,7.23536897,2392.1,2392.0,0.1]
[1730769500797,6.81709897,2392.1,2392.0,0.1]
[1730769501205,7.23536897,2392.1,2392.0,0.1]
[1730769502209,7.43573629,2392.1,2392.0,0.1]
[1730769502403,4.46253675,2392.1,2392.0,0.1]
[1730769502599,1.25473675,2392.1,2392.0,0.1]
[1730769503315,0.41832,2391.8,2391.5,2.32337]
[1730769503513,1.61770658,2391.6,2391.5,2.32337]
[1730769503711,1.61770658,2391.6,2391.3,5.0358]
[1730769503712,2.4541828,2391.6,2391.3,5.0358]
[1730769503910,0.83647622,2391.5,2391.4,0.41839]
[1730769504114,0.83647622,2391.5,2391.3,5.0358]
[1730769504115,0.62728578,2391.4,2391.3,5.0358]
[1730769504414,2.45407647,2391.4,2391.3,5.0358]
[1730769504802,2.45407647,2391.4,2391.3,5.45421]
[1730769505002,2.45407647,2391.4,2391.3,5.0358]
[1730769505603,2.45407647,2391.4,2391.3,5.45421]
[1730769505803,2.45407647,2391.4,2391.3,5.0358]
[1730769506305,2.45407647,2391.4,2391.3,5.45421]
[1730769506614,2.24488603,2391.4,2391.3,5.45421]
[1730769506910,2.24488603,2391.4,2391.3,3.62621]
[1730769507113,2.45410539,2391.4,2391.3,3.62621]
[1730769507913,2.45410539,2391.4,2391.3,3.2078]
[1730769508411,2.45410539,2391.4,2391.0,1.828]
[1730769508607,0.62728578,2391.1,2391.0,2.24645]
[1730769509213,1.70434169,2391.1,2391.0,2.24645]
[1730769509607,1.70434169,2391.1,2391.0,2.24646]
[1730769510018,0.62728578,2391.1,2391.0,2.24646]
[1730769510315,1.61760025,2391.3,2391.1,0.41843]
[1730769510514,0.62728578,2391.2,2391.1,0.41843]
[1730769511005,0.62728578,2391.2,2391.0,2.24645]
[1730769511200,0.62728578,2391.1,2391.0,2.24645]
[1730769511912,0.62728578,2391.1,2390.9,3.2078]
[1730769511913,0.62728578,2391.1,2390.9,6.47210351]
[1730769512109,1.61760025,2391.3,2390.9,0.41848]
[1730769512110,0.62728578,2391.0,2390.9,0.41848]
[1730769512717,0.62728578,2391.0,2390.8,0.41849]
[1730769512915,0.62728578,2390.8,2390.6,3.68282351]
[1730769513105,0.41849,2390.9,2390.6,0.41852]
[1730769513312,0.62728578,2390.8,2390.6,0.41852]
[1730769513618,0.62728578,2390.8,2390.5,3.2078]
[1730769513809,0.62728578,2390.8,2390.6,0.41852]
[1730769514121,5.2497,2391.2,2391.0,0.41845]
[1730769514317,0.62728578,2391.0,2390.9,0.41847]
[1730769514915,3.2078,2391.2,2391.1,0.41844]
[1730769515114,1.61760025,2391.3,2391.1,0.41844]
[1730769515314,0.62728578,2391.2,2391.1,0.41844]
[1730769516521,3.83508578,2391.2,2390.9,0.41846]
[1730769516724,0.62728578,2391.1,2391.0,0.41846]
[1730769517022,0.62728578,2391.1,2390.9,0.41847]
[1730769517520,0.62728578,2391.0,2390.9,0.41847]
[1730769517721,0.62728578,2391.0,2390.8,0.41848]
[1730769518022,0.62728578,2391.0,2390.9,0.41848]
[1730769518418,0.62728578,2391.0,2390.7,1.748]
[1730769518622,0.62728578,2390.9,2390.7,2.1665]
[1730769519309,0.62728578,2390.9,2390.8,0.4185]
[1730769519719,0.62728578,2390.9,2390.7,2.1665]
[1730769519914,0.62728578,2390.8,2390.7,1.748]
[1730769520120,0.62728578,2390.8,2390.6,3.68282351]
[1730769520324,0.62728578,2390.7,2390.6,3.68282351]
[1730769520618,0.62728578,2390.7,2390.6,0.41852]
[1730769521013,0.62728578,2390.7,2390.6,3.68282351]
[1730769521710,1.07490581,2391.0,2390.9,0.41848]
[1730769521924,1.70219159,2391.0,2390.9,0.41848]
[1730769522420,1.70219159,2391.0,2390.7,0.4185]
[1730769522625,0.62728578,2390.8,2390.7,0.41851]
[1730769524917,4.82015871,2391.2,2391.0,0.41846]
[1730769524918,4.28270581,2391.2,2391.0,0.41846]
[1730769525125,0.62728578,2391.1,2391.0,3.68276351]
[1730769526723,1.07490581,2391.2,2391.0,7.44670351]
[1730769526923,7.39951162,2391.8,2391.0,7.44670351]
[1730769526924,1.07490581,2391.4,2391.3,0.41841]
[1730769527127,1.70219159,2391.4,2391.3,2.09241]
[1730769527625,1.07490581,2391.5,2391.4,0.41839]
[1730769527827,1.70219159,2391.6,2391.5,0.41837]
[1730769528425,1.07490581,2391.7,2391.5,7.44590351]
[1730769528634,1.70219159,2391.7,2391.3,4.93830351]
[1730769528830,0.62728578,2391.4,2391.3,5.35671351]
[1730769530023,1.07490581,2391.6,2391.3,5.35671351]
[1730769530024,1.07490581,2391.6,2391.5,0.41837]
[1730769530324,0.62728578,2391.6,2391.5,0.41837]
[1730769530829,1.70219159,2391.6,2391.5,0.41837]
[1730769531326,1.70219159,2391.6,2391.5,4.59997]
[1730769531535,1.07490581,2391.7,2391.6,0.41836]
[1730769531726,1.70219159,2391.7,2391.6,0.41836]
[1730769534528,1.70177047,2391.7,2391.6,0.41836]
[1730769535118,1.70177047,2391.7,2391.4,3.2078]
[1730769535119,1.70177047,2391.7,2391.5,0.41836]
[1730769535418,1.07448469,2391.6,2391.5,0.41836]
[1730769535625,1.70177047,2391.6,2391.4,3.2078]
[1730769535923,4.04432287,2391.5,2390.6,6.47210351]
[1730769536124,0.62728578,2390.9,2390.8,0.4185]
[1730769536523,1.7018558,2390.9,2390.8,0.4185]
[1730769537122,42.5018558,2390.9,2390.8,0.4185]
[1730769537331,1.7018558,2390.9,2390.8,0.4185]
[1730769538428,0.62728578,2390.9,2390.8,0.4185]
[1730769539830,1.61185503,2391.1,2390.8,7.44670351]
[1730769540027,1.70247295,2391.0,2390.8,3.26430351]
[1730769540330,1.70247295,2391.0,2390.9,0.41848]
[1730769540525,0.62728578,2391.0,2390.9,0.41848]
[1730769540933,1.82109724,2391.2,2390.9,7.3902]
[1730769541127,1.07586456,2391.2,2391.1,3.26430351]
[1730769541328,5.77597162,2391.6,2391.3,0.41841]
[1730769541536,0.62728578,2391.4,2391.3,2.01841]
[1730769541745,1.25490469,2391.4,2391.3,1.6]
[1730769542241,0.41845,2391.1,2390.8,2.01848]
[1730769542539,0.62728578,2390.9,2390.6,3.62632]
[1730769542727,2.24177284,2390.8,2390.7,1.6]
[1730769542932,2.45103985,2390.8,2390.7,1.6]
[1730769543653,2.45096127,2390.8,2390.7,2.01851]
[1730769544335,0.83655279,2390.8,2390.7,1.6]
[1730769544741,0.83655279,2390.8,2390.7,6.20091]
[1730769544742,0.20926701,2390.8,2390.7,6.20091]
[1730769544939,1.82515936,2390.8,2390.7,6.20091]
[1730769545145,1.61589235,2390.8,2390.7,6.20091]
[1730769545433,1.82515936,2390.8,2390.7,6.20091]
[1730769545635,1.61589235,2390.9,2390.8,0.4185]
[1730769545841,1.61589235,2391.0,2390.8,3.26430351]
[1730769546039,1.07764611,2391.1,2390.9,10.65450351]
[1730769546233,1.61589235,2391.3,2391.0,3.26430351]
[1730769546433,1.61589235,2391.3,2391.2,3.62623]
[1730769546839,1.61589235,2391.3,2391.2,7.80783]
[1730769547532,1.82510313,2391.3,2391.2,7.80783]
[1730769547735,1.61589235,2391.3,2391.2,7.80783]
[1730769548236,1.61589235,2391.4,2391.2,7.3894]
[1730769548437,1.61589235,2391.4,2391.3,0.41841]
[1730769548640,1.8251052,2391.4,2391.3,0.41841]
[1730769548936,1.8251052,2391.4,2391.3,4.60001]
[1730769549541,1.8251052,2391.4,2391.3,7.86431351]
[1730769549739,2.15264941,2391.8,2391.4,0.41839]
[1730769549943,0.2091808,2391.7,2391.6,3.62616]
[1730769550250,0.62728578,2391.7,2391.6,6.89046351]
[1730769550636,2.15264941,2392.0,2391.6,10.65370351]
[1730769550838,0.62728578,2391.8,2391.7,0.41834]
[1730769551043,0.20918004,2391.8,2391.7,0.41834]
[1730769551243,0.20918004,2391.8,2391.7,4.59914]
[1730769551550,2.15264941,2392.1,2391.9,0.4183]
[1730769551742,0.62728578,2391.9,2391.8,0.41832]
[1730769551944,0.8364606,2391.9,2391.8,0.41832]
[1730769553249,0.20917482,2391.9,2391.8,4.59912]
[1730769553545,4.72469569,2392.3,2391.8,5.22658]
[1730769553777,0.83644025,2392.2,2392.1,3.68257351]
[1730769554045,2.57204628,2392.3,2392.2,0.41825]
[1730769554247,2.57204628,2392.3,2392.2,7.80605]
[1730769554448,8.10726452,2393.1,2392.7,0.41815]
[1730769554449,2.15264941,2392.9,2392.7,0.41815]
[1730769554642,3.6259,2393.1,2392.8,1.94515]
[1730769554643,2.15264941,2393.0,2392.8,1.94515]
[1730769554844,0.83639207,2392.9,2392.8,1.527]
[1730769555349,0.83639207,2392.9,2392.8,1.94515]
[1730769555642,0.83639207,2392.9,2392.8,1.527]
[1730769555844,0.41815,2392.8,2392.4,3.68251351]
[1730769556044,0.62728578,2392.4,2392.3,0.41822]
[1730769556244,1.04550578,2392.4,2392.3,1.527]
[1730769556452,0.83642924,2392.4,2391.9,1.527]
[1730769556649,0.62728578,2392.0,2391.9,1.527]
[1730769562654,5.6202,2392.3,2392.1,0.41827]
[1730769563055,0.62728578,2392.2,2392.1,0.41827]
[1730769563255,3.62597,2392.7,2391.9,1.527]
[1730769563256,5.36044941,2392.7,2391.9,1.527]
[1730769563452,0.62728578,2392.3,2392.2,0.41825]
[1730769564247,3.2078,2392.7,2392.2,4.18]
[1730769564457,0.62728578,2392.5,2392.4,0.41822]
[1730769565055,3.2078,2392.7,2392.5,0.41818]
[1730769565258,3.2078,2392.7,2392.6,1.94418]
[1730769565451,3.2078,2392.7,2392.6,1.526]
[1730769565649,3.83508578,2392.7,2392.6,1.526]
[1730769568263,3.83508578,2392.7,2392.4,0.4182]
[1730769568562,0.62728578,2392.6,2392.5,1.8732]
[1730769569249,0.62728578,2392.6,2392.5,0.4182]
[1730769569558,0.62728578,2392.6,2392.5,1.8732]
[1730769570063,3.83508578,2392.6,2391.9,2.4188]
[1730769570253,0.62728578,2392.1,2392.0,1.455]
[1730769570764,0.62728578,2392.1,2392.0,1.87329]
[1730769570953,0.62728578,2392.1,2391.8,3.2078]
[1730769571159,0.62728578,2391.9,2391.8,3.62611]
[1730769571461,0.62728578,2391.9,2391.8,5.08112]
[1730769572551,3.2078,2392.3,2392.0,0.41828]
[1730769572757,3.2078,2392.3,2391.9,0.41829]
[1730769572758,0.62728578,2392.0,2391.9,0.41829]
[1730769573255,0.62728578,2392.0,2391.9,0.4183]
[1730769573947,0.62728578,2392.0,2391.8,4.6628]
[1730769574258,0.62728578,2391.9,2391.8,5.08112]
[1730769575455,0.62728578,2391.9,2391.8,3.62612]
[1730769575757,0.62728578,2391.9,2391.8,5.08112]
[1730769576256,3.62604,2392.3,2391.8,8.8436]
[1730769576458,3.62604,2392.3,2392.0,0.41828]
[1730769576963,0.62728578,2392.1,2392.0,0.41828]
[1730769577862,2.3939,2392.5,2392.0,4.1808]
[1730769578160,0.62728578,2392.3,2392.2,0.41825]
[1730769580854,3.2078,2392.7,2392.5,0.41819]
[1730769581057,3.2078,2392.7,2392.5,1.87319]
[1730769581252,0.62728578,2392.6,2392.5,1.455]
[1730769581753,0.62728578,2392.6,2392.5,1.2458084]
[1730769582259,8.57882,2393.0,2392.5,5.0076084]
[1730769582560,0.62728578,2392.7,2392.6,0.41817]
[1730769583357,0.62728578,2392.7,2392.5,0.8276084]
[1730769583856,0.62728578,2392.7,2392.6,0.41818]
[1730769584857,0.62728578,2392.7,2392.5,0.8276084]
[1730769585261,0.62728578,2392.7,2392.6,0.41818]
[1730769586162,2.15264941,2393.2,2392.9,0.41813]
[1730769586163,3.2078,2393.2,2392.9,0.41813]
[1730769586362,3.2078,2393.2,2393.0,0.4181]
[1730769586557,0.62728578,2393.1,2392.9,3.68087328]
[1730769586759,0.62728578,2393.0,2392.9,3.68087328]
[1730769591074,3.22968194,2395.0,2394.7,0.41781]
[1730769591368,1.04413,2395.7,2393.6,2.09004]
[1730769591369,4.60840417,2396.9,2395.5,3.2078]
[1730769591669,3.2078,2397.4,2396.8,3.26275328]
[1730769591877,3.2078,2397.4,2396.6,3.2078]
[1730769591878,0.41739,2397.2,2397.1,0.06358436]
[1730769592062,0.85046236,2396.7,2396.5,3.2078]
[1730769592262,3.2078,2397.1,2396.5,3.2078]
[1730769592462,0.85046236,2396.6,2396.5,3.2078]
[1730769592868,0.85046236,2396.6,2396.5,3.6253]
[1730769593265,0.85046236,2396.6,2396.5,6.88183243]
[1730769593877,40.8,2397.5,2396.5,6.46433243]
[1730769594173,40.8,2397.5,2397.1,3.2078]
[1730769594673,4.1712,2397.4,2397.1,3.2078]
[1730769595069,4.1712,2397.3,2397.1,3.2078]
[1730769595265,4.1712,2397.4,2397.1,3.2078]
[1730769595772,40.8,2397.5,2397.1,3.2078]
[1730769595773,4.1712,2397.3,2397.1,3.2078]
[1730769596076,40.8,2397.5,2397.1,3.2078]
[1730769596077,4.1712,2397.4,2397.1,3.2078]
[1730769596279,4.1712,2397.4,2397.1,3.62519]
[1730769596576,4.1712,2397.3,2397.1,3.62519]
[1730769596781,40.8,2397.5,2397.3,0.41735]
[1730769597079,4.8653,2397.6,2397.4,3.2078]
[1730769597371,4.8653,2397.6,2397.4,3.62514]
[1730769597676,45.6653,2397.6,2397.4,3.2078]
[1730769597977,45.6653,2397.6,2397.4,3.62514]
[1730769598280,4.1712,2397.5,2397.0,3.2078]
[1730769598471,4.1712,2397.5,2396.9,0.41742]
[1730769598666,3.2078,2397.2,2396.9,0.41742]
[1730769599171,4.172,2397.1,2397.0,0.41741]
[1730769599377,3.2078,2397.2,2397.0,0.41741]
[1730769599574,4.172,2397.1,2397.0,0.41741]
[1730769601275,3.2078,2397.2,2397.1,0.4174]
[1730769601472,7.3798,2397.2,2397.1,0.4174]
[1730769601669,4.172,2397.2,2397.1,0.4174]
[1730769601882,7.3798,2397.2,2396.7,4.00784745]
[1730769602072,3.2078,2397.5,2397.2,0.41738]
[1730769602577,4.1712,2397.4,2397.2,0.41738]
[1730769602779,4.1712,2397.4,2397.1,0.41738]
[1730769602974,4.1712,2397.4,2396.7,4.00784745]
[1730769603175,3.2078,2397.5,2397.2,0.41737]
[1730769603685,4.1712,2397.4,2397.2,0.41737]
[1730769603875,0.41736,2397.3,2396.8,0.41744]
[1730769604071,3.2078,2397.1,2396.3,3.2078]
[1730769604274,3.2078,2397.1,2396.3,4.25163]
[1730769604578,40.8,2397.0,2396.9,0.41742]
[1730769605074,44.972,2397.0,2396.9,0.41742]
[1730769605483,44.972,2397.0,2396.9,0.41743]
[1730769606978,40.8,2397.0,2396.9,0.41743]
[1730769607180,44.972,2397.0,2396.6,3.62527]
[1730769607371,0.41748,2396.7,2395.8,4.00784745]
[1730769607571,3.2078,2396.5,2395.7,2.49907]
[1730769607775,3.2078,2396.5,2396.3,0.41752]
[1730769608073,3.2078,2396.5,2396.2,0.41755]
[1730769608385,3.2078,2396.5,2395.8,1.04406]
[1730769608587,3.2078,2396.5,2396.3,0.41753]
[1730769609179,4.1728,2396.4,2396.3,0.41753]
[1730769609377,4.1728,2396.4,2395.9,3.2078]
[1730769609577,3.6253,2396.5,2396.2,0.41755]
[1730769609881,3.2078,2396.5,2396.3,0.41753]
[1730769610077,3.2078,2396.5,2395.9,3.2078]
[1730769610471,3.2078,2396.5,2396.2,0.41754]
[1730769610676,3.2078,2396.5,2395.9,3.2078]
[1730769610985,3.2078,2396.5,2396.3,0.41752]
[1730769611383,3.2078,2396.5,2395.6,2.3086]
[1730769611384,4.1728,2396.4,2395.3,8.25989745]
[1730769611579,3.2078,2396.1,2395.9,0.4176]
[1730769611778,3.62538,2396.1,2395.8,0.41761]
[1730769612082,41.21759,2396.0,2395.7,0.41763]
[1730769612580,40.8,2396.0,2395.8,0.41762]
[1730769612980,44.9736,2396.0,2395.8,0.41762]
[1730769613184,45.39119,2396.0,2395.7,0.41763]
[1730769613380,40.8,2396.0,2395.3,7.21564745]
[1730769613591,40.8,2396.0,2395.3,3.62549]
[1730769613592,3.2078,2395.8,2395.3,3.62549]
[1730769613890,0.41769,2395.5,2395.3,3.2078]
[1730769614184,0.41769,2395.4,2395.3,3.2078]
[1730769614481,2.4671,2395.7,2395.4,0.41768]
[1730769614482,2.88475,2395.7,2395.4,0.41768]
[1730769614885,2.4671,2395.7,2395.4,0.41768]